bitfinex/quotes_SOLUSD_20250123
["timestamp","ask_amount","ask_price","bid_price","bid_amount"]
[1737639099233,31.33698992,244.63,244.6,1.0]
[1737639099619,31.33698992,244.63,244.62,1.0]
[1737639099808,35.42478992,244.63,244.58,1.0]
[1737639100131,31.33698992,244.65,244.62,1.0]
[1737639100332,31.33698992,244.67,244.65,1.0]
[1737639100517,31.33698992,244.67,244.61,1.0]
[1737639100718,31.33698992,244.65,244.63,1.0]
[1737639101221,31.33698992,244.65,244.61,1.0]
[1737639102029,4.0868,244.69,244.61,1.0]
[1737639102030,31.33698992,244.67,244.61,1.0]
[1737639102237,31.33698992,244.67,244.63,1.0]
[1737639102442,31.33698992,244.65,244.59,1.0]
[1737639102815,31.33698992,244.65,244.62,1.0]
[1737639103134,31.33698992,244.63,244.59,1.0]
[1737639103333,31.33698992,244.61,244.52,1.0]
[1737639103511,23.776884,244.64,244.52,1.0]
[1737639103512,31.33698992,244.58,244.52,1.0]
[1737639103713,31.33698992,244.56,244.54,1.0]
[1737639103912,35.42608992,244.56,244.53,1.0]
[1737639104336,31.33698992,244.56,244.53,1.0]
[1737639104634,35.42568992,244.58,244.54,1.0]
[1737639105244,31.33698992,244.6,244.59,1.0]
[1737639105616,31.33698992,244.62,244.59,1.0]
[1737639105821,31.33698992,244.62,244.61,1.0]
[1737639106025,35.42488992,244.62,244.59,1.0]
[1737639107033,31.33698992,244.66,244.63,1.0]
[1737639107541,31.33698992,244.66,244.64,1.0]
[1737639108338,35.42398992,244.68,244.66,1.0]
[1737639109027,35.42398992,244.68,244.57,31.33698992]
[1737639109028,35.42398992,244.68,244.62,1.0]
[1737639109543,31.33698992,244.64,244.56,1.0]
[1737639109738,31.33698992,244.61,244.56,1.0]
[1737639110447,31.33698992,244.65,244.63,1.0]
[1737639110618,31.33698992,244.67,244.65,1.0]
[1737639110822,31.33698992,244.71,244.69,1.0]
[1737639111043,31.33698992,244.73,244.69,1.0]
[1737639111227,31.33698992,244.73,244.71,1.0]
[1737639111425,31.33698992,244.75,244.71,1.0]
[1737639111629,31.33698992,244.75,244.74,1.0]
[1737639112221,4.0854,244.78,244.74,1.0]
[1737639112424,0.03,244.83,244.8,1.0]
[1737639112645,0.03,244.83,244.82,1.0]
[1737639114227,0.03,244.83,244.82,32.33698992]
[1737639114935,0.03,244.83,244.82,1.0]
[1737639116427,0.03,244.83,244.8,1.0]
[1737639116636,0.03,244.83,244.82,1.0]
[1737639116951,0.03,244.83,244.74,35.42288992]
[1737639116952,0.03,244.83,244.8,1.0]
[1737639117328,0.03,244.83,244.82,1.0]
[1737639118645,0.03,244.83,244.82,36.42158992]
[1737639119435,31.33698992,244.91,244.82,1.0]
[1737639119657,31.33698992,244.95,244.92,1.0]
[1737639119966,35.41948992,244.95,244.92,1.0]
[1737639120133,31.33698992,244.98,244.92,1.0]
[1737639120333,31.33698992,245.0,244.92,1.0]
[1737639120534,4.0818,244.99,244.92,1.0]
[1737639120750,31.33698992,244.95,244.9,1.0]
[1737639121338,31.33698992,244.95,244.92,1.0]
[1737639121737,31.33698992,244.95,244.9,1.0]
[1737639122355,31.33698992,245.0,244.92,1.0]
[1737639122657,4.0811,245.03,244.92,36.41988992]
[1737639123854,31.33698992,245.04,244.92,36.41988992]
[1737639124642,31.33698992,245.04,244.92,37.41988992]
[1737639124851,31.33698992,245.07,244.92,68.75687984]
[1737639125051,4.0802,245.09,245.08,1.0]
[1737639125442,4.0802,245.09,245.01,1.0]
[1737639125757,31.33698992,245.04,245.01,1.0]
[1737639125941,31.33698992,245.04,244.93,31.33698992]
[1737639125942,31.33698992,245.06,245.05,1.0]
[1737639126141,31.33698992,245.1,245.09,1.0]
[1737639126662,35.41658992,245.12,245.11,1.0]
[1737639126952,35.41658992,245.12,245.07,1.0]
[1737639127162,31.33698992,245.08,245.05,1.0]
[1737639127742,31.33698992,245.08,245.07,1.0]
[1737639128039,31.33698992,245.12,245.07,1.0]
[1737639128238,4.0798,245.11,245.1,1.0]
[1737639128457,4.0798,245.11,245.08,1.0]
[1737639129041,31.33698992,245.12,245.08,1.0]
[1737639129245,31.33698992,245.14,245.13,1.0]
[1737639130060,31.33698992,245.16,245.15,1.0]
[1737639130655,31.33698992,245.16,245.06,32.96918992]
[1737639130656,35.41588992,245.16,245.14,1.0]
[1737639130861,4.0789,245.16,245.14,1.0]
[1737639131453,4.0789,245.16,245.12,1.0]
[1737639131657,19.18265832,245.14,245.12,1.0]
[1737639132049,0.03,245.08,245.05,1.0]
[1737639132247,0.03,245.08,245.07,1.0]
[1737639133046,23.26175832,245.15,245.12,1.0]
[1737639133252,23.26175832,245.15,245.14,1.0]
[1737639133656,4.0791,245.15,245.14,1.0]
[1737639133858,4.0786,245.18,245.16,1.0]
[1737639134250,4.0789,245.16,245.14,1.0]
[1737639134763,19.18265832,245.17,245.16,1.0]
[1737639134986,19.18265832,245.19,245.16,1.0]
[1737639135268,1.5366,245.26,245.18,1.0]
[1737639135269,4.0784,245.2,245.18,1.0]
[1737639135448,19.18265832,245.19,245.14,1.0]
[1737639135648,23.26065832,245.22,245.21,1.0]
[1737639136053,25.0,245.23,245.21,1.0]
[1737639136373,19.18265832,245.22,245.21,1.0]
[1737639136662,25.0,245.23,245.21,1.0]
[1737639136840,29.0778,245.23,245.21,1.0]
[1737639137041,19.18265832,245.22,245.21,1.0]
[1737639137267,25.0,245.23,245.21,1.0]
[1737639140173,19.18265832,245.22,245.19,1.0]
[1737639140467,4.0784,245.19,245.17,1.0]
[1737639140975,4.0782,245.21,245.2,1.0]
[1737639141473,29.0779,245.23,245.22,1.0]
[1737639141672,25.0,245.23,245.22,1.0]
[1737639142981,25.0,245.23,245.22,20.18265832]
[1737639143667,25.0,245.23,245.22,1.0]
[1737639143976,25.0,245.23,245.22,20.18265832]
[1737639144146,25.0,245.23,245.22,21.84715832]
[1737639144749,25.0,245.23,245.22,1.0]
[1737639145149,25.03,245.23,245.22,1.0]
[1737639145961,25.0,245.23,245.22,1.0]
[1737639146162,25.0,245.23,245.2,1.0]
[1737639146163,4.0779,245.22,245.2,1.0]
[1737639146353,19.18265832,245.21,245.2,1.0]
[1737639146557,4.0783,245.2,245.06,19.18265832]
[1737639146767,19.18265832,245.17,245.06,19.18265832]
[1737639146962,19.18265832,245.19,245.09,19.18265832]
[1737639147200,25.0,245.23,245.11,19.18265832]
[1737639147201,44.18265832,245.23,245.11,19.18265832]
[1737639147352,48.26045832,245.23,245.11,19.18265832]
[1737639147555,48.26045832,245.23,245.13,19.18265832]
[1737639147976,25.0,245.23,245.15,19.18265832]
[1737639148293,19.18265832,245.21,245.11,39.18265832]
[1737639148490,4.0786,245.18,245.1,1.6438]
[1737639148688,19.18265832,245.11,244.99,19.18265832]
[1737639148871,19.18265832,245.09,245.0,6.69]
[1737639149065,19.18265832,245.09,244.99,19.18265832]
[1737639149767,19.18265832,245.11,245.01,19.18265832]
[1737639149975,23.26185832,245.15,245.05,19.18265832]
[1737639150278,19.18265832,245.15,245.05,19.18265832]
[1737639150592,19.18265832,245.07,244.95,20.81285832]
[1737639150769,19.18265832,245.04,244.96,6.69]
[1737639150966,19.18265832,245.02,244.93,23.32825832]
[1737639151396,19.18265832,245.04,244.95,19.18265832]
[1737639151556,19.18265832,245.12,245.01,19.18265832]
[1737639151761,19.18265832,245.14,245.03,19.18265832]
[1737639151971,19.18265832,245.16,245.06,19.18265832]
[1737639152165,19.18265832,245.16,244.96,19.18265832]
[1737639152166,19.18265832,245.07,244.96,19.18265832]
[1737639153468,23.26345832,245.05,244.94,19.18265832]
[1737639153685,19.18265832,245.03,244.94,19.18265832]
[1737639154084,19.18265832,245.03,244.94,23.26515832]
[1737639154293,19.18265832,245.05,245.02,312.0]
[1737639154690,23.26325832,245.07,245.02,312.0]
[1737639154898,19.18265832,245.07,244.96,19.18265832]
[1737639155074,19.18265832,245.05,244.96,19.18265832]
[1737639155275,19.18265832,245.05,244.94,23.26515832]
[1737639155805,19.18265832,245.05,244.96,19.18265832]
[1737639156003,19.18265832,245.05,244.94,23.26515832]
[1737639156210,19.18265832,245.03,244.94,23.26515832]
[1737639156578,19.18265832,245.05,244.94,23.26515832]
[1737639157300,19.18265832,245.03,244.94,23.26515832]
[1737639157517,19.18265832,245.03,244.94,4.0825]
[1737639157900,19.18265832,245.03,245.02,312.0]
[1737639158271,4.0812,245.02,244.94,0.063]
[1737639158505,19.18265832,244.95,244.94,0.063]
[1737639159788,24.88805832,244.95,244.94,0.063]
[1737639160108,23.26505832,244.95,244.94,0.063]
[1737639160396,19.18265832,244.95,244.94,0.063]
[1737639160604,19.18265832,244.97,244.94,0.063]
[1737639160904,19.18265832,244.99,244.94,4.1455]
[1737639161201,19.18265832,245.01,244.94,4.1455]
[1737639161503,19.18265832,244.97,244.94,0.063]
[1737639163305,19.18265832,244.99,244.94,0.063]
[1737639164087,19.18265832,245.01,244.95,1.6205]
[1737639164287,19.18265832,245.17,245.02,1.0]
[1737639164497,19.18265832,245.13,245.02,19.18265832]
[1737639164804,19.18265832,245.11,245.02,19.18265832]
[1737639165596,19.18265832,245.13,245.02,19.18265832]
[1737639165793,19.18265832,245.13,245.03,4.0811]
[1737639166593,23.26115832,245.19,245.07,19.18265832]
[1737639168004,23.26115832,245.19,245.07,23.26295832]
[1737639168205,23.26115832,245.19,245.09,19.18265832]
[1737639169119,6.1545,245.2,245.13,19.18265832]
[1737639169822,25.0,245.23,245.19,19.18265832]
[1737639170400,0.03,245.2,245.17,19.18265832]
[1737639170817,0.03,245.2,245.19,19.18265832]
[1737639171024,0.03,245.2,245.19,23.26105832]
[1737639171319,25.0,245.23,245.19,23.26105832]
[1737639171502,25.0,245.23,245.22,19.18265832]
[1737639172606,25.0,245.23,245.22,20.18265832]
[1737639172923,2.4965,245.23,245.22,24.26055832]
[1737639173107,4.0752,245.39,245.23,1.0]
[1737639173302,10.20412177,245.41,245.32,19.18265832]
[1737639173709,4.0749,245.41,245.32,19.18265832]
[1737639174317,19.18265832,245.4,245.32,19.18265832]
[1737639174636,19.18265832,245.4,245.3,19.18265832]
[1737639175102,19.18265832,245.38,245.3,19.18265832]
[1737639175520,19.18265832,245.38,245.28,19.18265832]
[1737639175725,19.18265832,245.38,245.3,19.18265832]
[1737639176427,19.18265832,245.36,245.26,19.18265832]
[1737639177424,19.18265832,245.34,245.26,19.18265832]
[1737639178224,19.18265832,245.36,245.26,19.18265832]
[1737639178424,19.18265832,245.36,245.28,19.18265832]
[1737639178731,10.5125,245.37,245.3,19.18265832]
[1737639178915,4.0754,245.37,245.3,19.18265832]
[1737639179124,4.0754,245.37,245.28,19.18265832]
[1737639180125,19.18265832,245.36,245.26,19.18265832]
[1737639180346,19.18265832,245.36,245.2,1.0]
[1737639180347,19.18265832,245.3,245.2,19.18265832]
[1737639180514,19.18265832,245.28,245.2,19.18265832]
[1737639180718,19.18265832,245.26,245.16,19.18265832]
[1737639181812,4.0771,245.27,245.19,19.18265832]
[1737639182434,19.18265832,245.25,245.15,19.18265832]
[1737639183516,19.18265832,245.23,245.13,19.18265832]
[1737639183815,23.26015832,245.25,245.15,19.18265832]
[1737639184439,19.18265832,245.21,245.11,19.18265832]
[1737639184752,19.18265832,245.19,245.09,19.18265832]
[1737639184921,6.3291,245.22,245.12,19.18265832]
[1737639185959,6.3291,245.22,245.12,23.26205832]
[1737639186243,6.3291,245.22,245.08,19.18265832]
[1737639186244,19.18265832,245.19,245.08,19.18265832]
[1737639186615,19.18265832,245.19,245.1,19.18265832]
[1737639187112,19.18265832,245.19,245.05,0.063]
[1737639187113,19.18265832,245.13,245.05,0.063]
[1737639187426,19.18265832,245.09,245.05,0.063]
[1737639187736,19.18265832,245.11,245.05,0.063]
[1737639187932,4.0799,245.1,245.05,0.063]
[1737639188149,19.18265832,245.09,245.05,0.063]
[1737639188322,19.18265832,245.07,245.05,0.063]
[1737639188530,4.0797,245.12,245.05,0.063]
[1737639188734,19.18265832,245.13,245.05,0.063]
[1737639188927,4.0794,245.14,245.05,0.063]
[1737639189127,19.18265832,245.13,245.05,0.063]
[1737639190050,10.1959,245.2,245.05,0.063]
[1737639190051,19.18265832,245.15,245.05,0.063]
[1737639190258,19.18265832,245.17,245.06,23.26325832]
[1737639190620,19.18265832,245.17,245.06,19.18265832]
[1737639190820,19.18265832,245.15,245.06,19.18265832]
[1737639191047,19.18265832,245.15,245.05,0.063]
[1737639191245,19.18265832,245.13,245.05,0.063]
[1737639191427,19.18265832,245.09,245.05,0.063]
[1737639192050,19.18265832,245.07,245.05,0.063]
[1737639193124,23.776884,245.06,245.02,0.063]
[1737639193350,19.18265832,245.03,245.02,0.063]
[1737639194051,23.26355832,245.05,245.02,0.063]
[1737639194252,19.18265832,245.04,244.94,0.063]
[1737639194438,19.18265832,245.02,244.94,0.063]
[1737639195935,19.18265832,244.97,244.94,0.063]
[1737639196136,23.26505832,244.95,244.94,0.063]
[1737639197334,23.26505832,244.95,244.94,0.0001]
[1737639198451,43.44771664,244.95,244.93,0.0001]
[1737639198863,23.776884,244.94,244.93,0.0001]
[1737639199253,23.776884,244.94,244.8,0.063]
[1737639199254,30.345784,244.9,244.8,0.063]
[1737639199572,23.26685832,244.84,244.8,0.063]
[1737639199779,23.26685832,244.84,244.83,0.0001]
[1737639200782,47.04374232,244.84,244.83,0.0001]
[1737639201251,23.776884,244.81,244.8,0.0001]
[1737639201451,66.22700064,244.81,244.8,0.0001]
[1737639201652,23.26745832,244.81,244.8,0.0001]
[1737639201853,4.0848,244.81,244.61,20.0]
[1737639202157,4.0848,244.81,244.57,8.2821]
[1737639202158,19.18265832,244.78,244.7,19.18265832]
[1737639202366,19.18265832,244.8,244.7,19.18265832]
[1737639203147,19.18265832,244.83,244.73,19.18265832]
[1737639203349,1.5752,244.89,244.68,19.18265832]
[1737639203350,23.26645832,244.87,244.77,19.18265832]
[1737639203567,19.18265832,244.87,244.77,23.26805832]
[1737639203946,23.26605832,244.89,244.79,19.18265832]
[1737639204244,19.18265832,244.93,244.83,19.18265832]
[1737639204444,19.18265832,244.95,244.85,19.18265832]
[1737639204864,4.0821,244.98,244.87,19.18265832]
[1737639205464,4.0821,244.98,244.87,23.26635832]
[1737639206382,19.18265832,244.95,244.85,19.18265832]
[1737639206580,19.18265832,244.93,244.83,19.18265832]
[1737639207663,4.0829,244.92,244.83,19.18265832]
[1737639208071,4.0829,244.92,244.83,23.26705832]
[1737639208268,1.03,245.02,244.87,19.18265832]
[1737639208269,19.18265832,244.97,244.87,19.18265832]
[1737639209564,19.18265832,244.99,244.89,19.18265832]
[1737639210465,4.0817,245.0,244.91,19.18265832]
[1737639210773,4.0817,245.0,244.93,19.18265832]
[1737639210966,0.03,245.02,244.95,19.18265832]
[1737639211864,0.03,245.02,244.95,23.26495832]
[1737639212480,0.03,245.02,244.95,19.18265832]
[1737639213182,0.03,245.02,244.95,23.26495832]
[1737639213681,0.03,245.02,244.97,19.18265832]
[1737639213917,0.03,245.02,244.99,19.18265832]
[1737639214079,0.03,245.02,245.01,19.18265832]
[1737639215705,0.03,245.02,245.01,23.26405832]
[1737639216781,0.0001,245.02,245.01,23.26405832]
[1737639217505,0.0001,245.02,245.01,51.52021664]
[1737639217676,4.0785,245.19,245.12,19.18265832]
[1737639217993,4.0785,245.19,245.1,19.18265832]
[1737639218196,4.0785,245.19,245.08,19.18265832]
[1737639218197,19.18265832,245.17,245.08,19.18265832]
[1737639218510,19.18265832,245.17,245.01,12.1549]
[1737639218511,19.18265832,245.15,245.05,19.18265832]
[1737639218678,19.18265832,245.12,245.02,19.18265832]
[1737639218882,19.18265832,245.09,245.0,19.18265832]
[1737639219280,6.3492,245.1,245.0,19.18265832]
[1737639219481,19.18265832,245.13,245.04,19.18265832]
[1737639219717,19.18265832,245.15,245.04,19.18265832]
[1737639220385,19.18265832,245.15,244.96,14.2877]
[1737639220386,19.18265832,245.15,245.06,23.26305832]
[1737639220897,25.38625832,245.17,245.06,23.26305832]
[1737639221816,19.18265832,245.15,245.06,19.18265832]
[1737639221985,19.18265832,245.15,244.92,20.18265832]
[1737639221986,19.18265832,245.09,245.0,19.18265832]
[1737639222307,19.18265832,245.09,244.98,19.18265832]
[1737639222497,19.18265832,245.09,244.99,4.0817]
[1737639222699,19.18265832,245.07,244.99,4.0817]
[1737639222882,4.0793,245.14,244.99,4.0817]
[1737639222883,19.18265832,245.09,245.0,19.18265832]
[1737639224027,19.18265832,245.09,245.01,4.0814]
[1737639224680,19.18265832,245.09,244.95,10.2059]
[1737639224681,19.18265832,245.07,244.98,19.18265832]
[1737639224901,19.18265832,245.07,244.96,23.26485832]
[1737639225125,19.18265832,245.05,244.94,23.26515832]
[1737639225287,19.18265832,245.03,244.94,4.0825]
[1737639225698,19.18265832,245.03,244.94,23.26515832]
[1737639226004,19.18265832,245.07,244.98,4.0819]
[1737639227590,23.26305832,245.07,244.96,4.0821]
[1737639227793,19.18265832,245.05,244.96,4.0821]
[1737639228125,19.18265832,245.01,244.91,19.18265832]
[1737639228411,19.18265832,244.97,244.88,4.1464]
[1737639228805,19.18265832,244.99,244.89,19.18265832]
[1737639228991,6.6311,245.03,244.95,19.18265832]
[1737639229198,19.18265832,245.05,244.96,4.0822]
[1737639229412,23.26345832,245.05,244.96,4.0822]
[1737639230118,23.26325832,245.07,244.97,19.18265832]
[1737639230411,25.76025832,245.15,245.05,19.18265832]
[1737639230789,19.18265832,245.13,245.03,19.18265832]
[1737639231109,23.26215832,245.13,245.03,19.18265832]
[1737639231511,25.76025832,245.15,245.05,19.18265832]
[1737639231819,29.83935832,245.15,245.05,19.18265832]
[1737639233417,19.18265832,245.17,245.07,19.18265832]
[1737639233916,19.18265832,245.13,245.03,19.18265832]
[1737639234117,19.18265832,245.07,244.97,19.18265832]
[1737639235100,19.18265832,245.07,244.97,23.26465832]
[1737639235309,23.26315832,245.07,244.97,23.26465832]
[1737639236098,19.18265832,245.05,244.93,23.26535832]
[1737639236298,19.18265832,245.05,244.94,19.44]
[1737639237223,19.18265832,245.05,244.93,23.26535832]
[1737639237523,6.64,245.08,244.91,0.063]
[1737639237524,19.18265832,244.97,244.91,0.063]
[1737639237704,19.18265832,245.01,244.91,4.146]
[1737639237905,19.18265832,244.99,244.91,0.063]
[1737639239025,4.0819,244.98,244.91,0.063]
[1737639239327,19.18265832,244.99,244.91,0.063]
[1737639239501,19.18265832,244.99,244.91,4.146]
[1737639240135,23.26415832,245.01,244.92,19.18265832]
[1737639240325,19.18265832,244.99,244.91,0.063]
[1737639241305,23.26445832,244.99,244.91,0.063]
[1737639242114,19.18265832,244.96,244.91,0.063]
[1737639242319,19.18265832,244.92,244.91,0.063]
[1737639244023,42.44821664,244.92,244.91,0.063]
[1737639244220,42.44821664,244.92,244.88,0.063]
[1737639244520,19.18265832,244.89,244.88,0.0001]
[1737639244728,23.776884,244.88,244.73,19.18265832]
[1737639244922,19.18265832,244.81,244.73,19.18265832]
[1737639245113,19.18265832,244.85,244.76,19.18265832]
[1737639245919,19.18265832,244.83,244.74,19.18265832]
[1737639246120,10.209,244.89,244.7,0.063]
[1737639246121,19.18265832,244.78,244.7,0.063]
[1737639246821,19.18265832,244.76,244.7,0.063]
[1737639247024,19.18265832,244.78,244.7,0.063]
[1737639247225,19.18265832,244.78,244.7,4.1495]
[1737639248220,19.18265832,244.78,244.7,23.33215832]
[1737639248414,19.18265832,244.86,244.77,19.18265832]
[1737639248825,19.18265832,244.84,244.73,19.18265832]
[1737639249023,19.18265832,244.8,244.71,19.18265832]
[1737639249331,19.18265832,244.8,244.7,0.063]
[1737639249556,19.18265832,244.78,244.7,0.063]
[1737639249844,19.18265832,244.74,244.7,0.063]
[1737639250154,4.0861,244.73,244.7,0.063]
[1737639251227,19.18265832,244.74,244.7,0.063]
[1737639251441,19.18265832,244.76,244.7,0.063]
[1737639252444,4.0858,244.75,244.7,0.063]
[1737639252660,19.18265832,244.74,244.7,0.063]
[1737639253156,4.0855,244.77,244.7,0.063]
[1737639253363,19.18265832,244.78,244.7,0.063]
[1737639254135,19.18265832,244.78,244.7,4.1495]
[1737639254452,23.26795832,244.78,244.7,0.063]
[1737639254656,19.18265832,244.76,244.7,0.063]
[1737639255357,19.18265832,244.72,244.7,0.063]
[1737639256342,4.0864,244.71,244.7,0.063]
[1737639256747,19.18265832,244.72,244.7,0.063]
[1737639256956,19.18265832,244.74,244.7,0.063]
[1737639257156,23.26835832,244.76,244.7,0.063]
[1737639258354,4.0853,244.78,244.7,19.24565832]
[1737639258552,19.18265832,244.82,244.72,19.18265832]
[1737639258750,4.0845,244.83,244.74,19.18265832]
[1737639259154,19.18265832,244.82,244.72,19.18265832]
[1737639259363,19.18265832,244.78,244.7,0.063]
[1737639259570,19.18265832,244.78,244.68,22.83245832]
[1737639260441,19.18265832,244.74,244.66,19.24565832]
[1737639260641,19.18265832,244.72,244.66,0.063]
[1737639260841,19.18265832,244.72,244.66,19.523]
[1737639261246,19.18265832,244.7,244.66,19.523]
[1737639261473,19.18265832,244.72,244.66,0.063]
[1737639261669,19.18265832,244.7,244.66,0.063]
[1737639262164,19.18265832,244.68,244.66,0.063]
[1737639262468,4.0871,244.67,244.66,0.063]
[1737639262847,27.863984,244.67,244.66,0.063]
[1737639263455,27.863984,244.67,244.66,0.0001]
[1737639263656,20.0,244.63,244.58,0.063]
[1737639263852,19.18265832,244.59,244.58,0.063]
[1737639264060,19.18265832,244.61,244.58,0.063]
[1737639264257,19.18265832,244.61,244.54,0.063]
[1737639264258,19.18265832,244.59,244.54,0.063]
[1737639264452,19.18265832,244.55,244.54,0.063]
[1737639265085,19.18265832,244.59,244.54,0.063]
[1737639265884,6.0149,244.6,244.54,0.063]
[1737639266087,19.18265832,244.63,244.54,23.33475832]
[1737639266252,25.43295832,244.66,244.54,23.33475832]
[1737639266468,19.18265832,244.64,244.54,19.24565832]
[1737639267090,29.52035832,244.66,244.55,4.0891]
[1737639267307,19.18265832,244.68,244.57,19.18265832]
[1737639267473,19.18265832,244.7,244.61,19.18265832]
[1737639267799,19.18265832,244.68,244.59,19.18265832]
[1737639268384,19.18265832,244.7,244.6,4.0883]
[1737639268583,19.18265832,244.72,244.63,19.18265832]
[1737639268780,19.18265832,244.74,244.63,19.18265832]
[1737639269187,4.0854,244.77,244.63,19.18265832]
[1737639269188,19.18265832,244.72,244.63,19.18265832]
[1737639269705,19.18265832,244.7,244.59,19.18265832]
[1737639270232,19.18265832,244.7,244.59,23.27095832]
[1737639270393,19.18265832,244.7,244.54,0.063]
[1737639270394,23.26905832,244.72,244.61,23.27065832]
[1737639270770,19.18265832,244.7,244.59,19.18265832]
[1737639272090,4.0868,244.69,244.59,19.18265832]
[1737639272295,4.0868,244.69,244.61,19.18265832]
[1737639272605,19.18265832,244.72,244.63,19.18265832]
[1737639273107,23.26895832,244.72,244.63,19.18265832]
[1737639273409,23.776884,244.77,244.59,4.0883]
[1737639273410,19.18265832,244.76,244.65,19.18265832]
[1737639273798,25.59525832,244.78,244.67,19.18265832]
[1737639274018,19.18265832,244.8,244.71,19.18265832]
[1737639275232,19.18265832,244.8,244.72,4.0863]
[1737639275421,19.18265832,244.78,244.67,19.18265832]
[1737639276000,6.2914,244.85,244.71,19.18265832]
[1737639276001,23.26755832,244.81,244.71,19.18265832]
[1737639276304,25.47405832,244.85,244.75,19.18265832]
[1737639276714,23.26675832,244.85,244.75,19.18265832]
[1737639277419,23.26675832,244.85,244.75,23.26835832]
[1737639277609,23.26675832,244.85,244.73,23.26865832]
[1737639278101,19.18265832,244.77,244.67,19.18265832]
[1737639278424,19.18265832,244.79,244.69,19.18265832]
[1737639278632,19.18265832,244.79,244.67,19.18265832]
[1737639278835,19.18265832,244.75,244.65,19.18265832]
[1737639279036,19.18265832,244.73,244.63,19.18265832]
[1737639279216,19.18265832,244.73,244.64,19.47]
[1737639279395,19.18265832,244.73,244.58,4.0885]
[1737639279396,4.0863,244.72,244.61,19.18265832]
[1737639279595,4.0863,244.72,244.63,19.18265832]
[1737639281101,4.0863,244.72,244.61,19.18265832]
[1737639281102,19.18265832,244.71,244.61,19.18265832]
[1737639281299,19.18265832,244.69,244.57,20.81115832]
[1737639281545,19.18265832,244.67,244.57,19.18265832]
[1737639281727,19.18265832,244.67,244.55,19.18265832]
[1737639281910,19.18265832,244.67,244.57,19.18265832]
[1737639282347,19.18265832,244.69,244.59,19.18265832]
[1737639283052,4.0869,244.68,244.57,19.24565832]
[1737639283921,4.0869,244.68,244.57,23.33435832]
[1737639284244,19.18265832,244.67,244.57,19.24565832]
[1737639284547,19.18265832,244.62,244.57,0.063]
[1737639284845,19.18265832,244.58,244.57,0.063]
[1737639285242,19.18265832,244.62,244.57,0.063]
[1737639285561,19.18265832,244.66,244.57,0.063]
[1737639285718,23.26995832,244.66,244.57,4.1517]
[1737639285919,23.26965832,244.68,244.58,19.18265832]
[1737639287032,19.18265832,244.66,244.57,0.063]
[1737639288240,19.18265832,244.62,244.57,0.063]
[1737639288420,19.18265832,244.61,244.57,0.063]
[1737639289354,4.0883,244.6,244.57,0.063]
[1737639290322,19.18265832,244.59,244.57,0.063]
[1737639291334,4.0886,244.58,244.57,0.063]
[1737639293436,4.0883,244.6,244.57,0.063]
[1737639293739,19.18265832,244.59,244.57,0.063]
[1737639294443,4.088,244.62,244.57,0.063]
[1737639294744,4.0874,244.66,244.57,19.24565832]
[1737639295247,19.18265832,244.67,244.57,19.24565832]
[1737639295545,0.03,244.62,244.57,23.33435832]
[1737639296835,0.03,244.62,244.57,19.24565832]
[1737639297043,0.03,244.62,244.57,0.063]
[1737639299043,0.03,244.62,244.57,4.1517]
[1737639299352,0.03,244.62,244.57,0.063]
[1737639301251,19.18265832,244.61,244.57,0.063]
[1737639301438,19.18265832,244.59,244.57,0.063]
[1737639301841,0.03,244.62,244.57,0.063]
[1737639302549,0.03,244.62,244.57,4.1517]
[1737639302732,0.03,244.62,244.57,23.33435832]
[1737639302936,0.03,244.62,244.57,19.24565832]
[1737639303138,0.03,244.62,244.57,0.063]
[1737639303847,0.03,244.62,244.57,16.18884881]
[1737639304335,0.03,244.62,244.6,4.0883]
[1737639304740,0.03,244.62,244.61,12.03714881]
[1737639304938,0.03,244.7,244.62,23.776884]
[1737639305140,0.03,244.7,244.69,12.03714881]
[1737639305324,0.03,244.7,244.67,12.03714881]
[1737639305526,0.03,244.7,244.61,12.03714881]
[1737639305857,19.25229956,244.69,244.6,19.25229956]
[1737639306157,19.25229956,244.69,244.58,25.89029956]